Workbook

Sheet XLR_NoRangeSheet (hidden)
A5: 4.2, Developer (build 122-D7) | B5: =XLR_ERRNAME -> 
A6: xlrParams | B6: SCBIS | C6: GL_SPECDEP | D6: SPECDEP\sd826 | E6: Минейкин Антон Федорович | F6: 2023-07-31 | G6: 2023-07-31 | H6: \\sdfile\gl\customreports\Инвестиционный портфель фонда 5175-У.xlsm | I6: Инвестиционный портфель НПФ 5175-У | J6: ПР - Сбербанка | K6: Все отделения
A7: Report03 | B7: 4.304555606e+10 | C7: 2357116490 | D7: 3.71398501e+10 | E7: 1.309954959e+10 | H7: 4273880.32 | I7: 363000000 | M7: 1847143201 | N7: 199
A8: Report04 | B8: 9.785648932e+10
A9: Report05 | B9: Состав инвестиционного портфеля средств пенсионных резервов фонда на 31.07.2023 | C9: 9.785648932e+10
A10: Report28 | B10: Акционерное общество "Негосударственный Пенсионный Фонд Сбербанка"
A11: Report29 | B11: 9.785648932e+10

Sheet Состав портфеля
O1: =XLRPARAMS_FinishDate -> 45138
B2: =Report05_NAME -> Состав инвестиционного портфеля средств пенсионных резервов фонда на 31.07.2023 | O2: =Report05_TOTAL -> 9.785648932e+10
B3: =Report28_FULLNAME -> Акционерное общество "Негосударственный Пенсионный Фонд Сбербанка"
B5: Наименование актива | C5: ISIN (номер государственной регистрации правил доверительного управления, кадастровый номер) | D5: Полное наименование эмитента (дебитора) | E5: ОГРН | F5: Количество, шт. | G5: Стоимость, руб. | H5: Доля, %
B6: Государственные ценные бумаги Российской Федерации
B7: 24021RMFS | C7: RU000A101CK7 | D7: Министерство финансов Российской Федерации | E7: 1037739085636 | F7: 2310350 | G7: 2316403117 | H7: 2.37
B8: 25084RMFS | C8: RU000A101FA1 | D8: Министерство финансов Российской Федерации | E8: 1037739085636 | F8: 324807 | G8: 329110692.8 | H8: 0.34
B9: 26207RMFS | C9: RU000A0JS3W6 | D9: Министерство финансов Российской Федерации | E9: 1037739085636 | F9: 1948272 | G9: 2108922227 | H9: 2.16
B10: 26212RMFS | C10: RU000A0JTK38 | D10: Министерство финансов Российской Федерации | E10: 1037739085636 | F10: 1118204 | G10: 1126236391 | H10: 1.15
B11: 26215RMFS | C11: RU000A0JU4L3 | D11: Министерство финансов Российской Федерации | E11: 1037739085636 | F11: 664400 | G11: 685182432 | H11: 0.7
B12: 26218RMFS | C12: RU000A0JVW48 | D12: Министерство финансов Российской Федерации | E12: 1037739085636 | F12: 288628 | G12: 272590057.9 | H12: 0.28
B13: 26219RMFS | C13: RU000A0JWM07 | D13: Министерство финансов Российской Федерации | E13: 1037739085636 | F13: 490000 | G13: 478854582.8 | H13: 0.49
B14: 26221RMFS | C14: RU000A0JXFM1 | D14: Министерство финансов Российской Федерации | E14: 1037739085636 | F14: 274963 | G14: 295894519 | H14: 0.3
B15: 26222RMFS | C15: RU000A0JXQF2 | D15: Министерство финансов Российской Федерации | E15: 1037739085636 | F15: 750933 | G15: 751961778.2 | H15: 0.77
B16: 26224RMFS | C16: RU000A0ZYUA9 | D16: Министерство финансов Российской Федерации | E16: 1037739085636 | F16: 465802 | G16: 412370181.8 | H16: 0.42
B17: 26225RMFS | C17: RU000A0ZYUB7 | D17: Министерство финансов Российской Федерации | E17: 1037739085636 | F17: 235188 | G17: 240812249.4 | H17: 0.25
B18: 26226RMFS | C18: RU000A0ZZYW2 | D18: Министерство финансов Российской Федерации | E18: 1037739085636 | F18: 250000 | G18: 236685710.8 | H18: 0.24
B19: 26227RMFS | C19: RU000A1007F4 | D19: Министерство финансов Российской Федерации | E19: 1037739085636 | F19: 2660496 | G19: 2635274498 | H19: 2.69
B20: 26228RMFS | C20: RU000A100A82 | D20: Министерство финансов Российской Федерации | E20: 1037739085636 | F20: 2687797 | G20: 2787485727 | H20: 2.85
B21: 26229RMFS | C21: RU000A100EG3 | D21: Министерство финансов Российской Федерации | E21: 1037739085636 | F21: 1797771 | G21: 1745324762 | H21: 1.78
B22: 26232RMFS | C22: RU000A1014N4 | D22: Министерство финансов Российской Федерации | E22: 1037739085636 | F22: 2225950 | G22: 2190952534 | H22: 2.24
B23: 26233RMFS | C23: RU000A101F94 | D23: Министерство финансов Российской Федерации | E23: 1037739085636 | F23: 250000 | G23: 198697924.3 | H23: 0.2
B24: 26234RMFS | C24: RU000A101QE0 | D24: Министерство финансов Российской Федерации | E24: 1037739085636 | F24: 2159495 | G24: 1986249514 | H24: 2.03
B25: 26235RMFS | C25: RU000A1028E3 | D25: Министерство финансов Российской Федерации | E25: 1037739085636 | F25: 399995 | G25: 306309925.1 | H25: 0.31
B26: 26236RMFS | C26: RU000A102BT8 | D26: Министерство финансов Российской Федерации | E26: 1037739085636 | F26: 3387944 | G26: 3243854998 | H26: 3.31
B27: 26237RMFS | C27: RU000A1038Z7 | D27: Министерство финансов Российской Федерации | E27: 1037739085636 | F27: 6351615 | G27: 5730434586 | H27: 5.86
B28: 26239RMFS | C28: RU000A103901 | D28: Министерство финансов Российской Федерации | E28: 1037739085636 | F28: 2505464 | G28: 2326256762 | H28: 2.38
B29: 26240RMFS | C29: RU000A103BR0 | D29: Министерство финансов Российской Федерации | E29: 1037739085636 | F29: 250000 | G29: 217158461.7 | H29: 0.22
B30: 26241RMFS | C30: RU000A105FZ9 | D30: Министерство финансов Российской Федерации | E30: 1037739085636 | F30: 4825673 | G30: 4652757386 | H30: 4.75
B31: 26242RMFS | C31: RU000A105RV3 | D31: Министерство финансов Российской Федерации | E31: 1037739085636 | F31: 3760016 | G31: 3777494842 | H31: 3.86
B32: 29006RMFS | C32: RU000A0JV4L2 | D32: Министерство финансов Российской Федерации | E32: 1037739085636 | F32: 940139 | G32: 986647676.3 | H32: 1.01
B33: 29007RMFS | C33: RU000A0JV4M0 | D33: Министерство финансов Российской Федерации | E33: 1037739085636 | F33: 160280 | G33: 170581195.6 | H33: 0.17
B34: 29009RMFS | C34: RU000A0JV4N8 | D34: Министерство финансов Российской Федерации | E34: 1037739085636 | F34: 358 | G34: 380231.8 | H34: 0
B35: 29024RMFS | C35: RU000A1066D5 | D35: Министерство финансов Российской Федерации | E35: 1037739085636 | F35: 810593 | G35: 796723753.8 | H35: 0.81
B36: 52001RMFS | C36: RU000A0JVMH1 | D36: Министерство финансов Российской Федерации | E36: 1037739085636 | F36: 14786 | G36: 23619010.02 | H36: 0.02
B37: 52002RMFS | C37: RU000A0ZYZ26 | D37: Министерство финансов Российской Федерации | E37: 1037739085636 | F37: 10287 | G37: 14328334.36 | H37: 0.01
B38: Итого: | G38: =SUM($G$7:$G$37) -> 4.304555606e+10 | H38: =(G38/$O$2) *100 -> 43.98845325
B39: Государственные ценные бумаги субъектов Российской Федерации
B40: RU26074MOS0 | C40: RU000A1033Z8 | D40: Правительство Москвы в лице Департамента финансов города Москвы | E40: 1027700505348 | F40: 870470 | G40: 881335578.4 | H40: 0.9
B41: RU34012BAS0 | C41: RU000A103DN5 | D41: Министерство финансов Республики Башкортостан | E41: 1030203917622 | F41: 83843 | G41: 83121272.3 | H41: 0.08
B42: RU34014BEL0 | C42: RU000A101PA0 | D42: Правительство Белгородской области | E42: 1023101674650 | F42: 13123 | G42: 11592638.72 | H42: 0.01
B43: RU34021ANO0 | C43: RU000A102895 | D43: Министерство финансов и налоговой политики Новосибирской области | E43: 1105476023223 | F43: 73500 | G43: 69996255 | H43: 0.07
B44: RU35001CLB0 | C44: RU000A102FV5 | D44: Министерство финансов Челябинской области | E44: 1047424532968 | F44: 99750 | G44: 100731745.7 | H44: 0.1
B45: RU35002GSP0 | C45: RU000A0ZYKJ1 | D45: Комитет финансов Санкт-Петербурга | E45: 1027810256352 | F45: 47022 | G45: 36826425.47 | H45: 0.04
B46: RU35002KND0 | C46: RU000A0ZZ8X4 | D46: министерство финансов Краснодарского края | E46: 1022301211570 | F46: 87000 | G46: 67127847.79 | H46: 0.07
B47: RU35003GSP0 | C47: RU000A102A15 | D47: Комитет финансов Санкт-Петербурга | E47: 1027810256352 | F47: 308400 | G47: 304592240.2 | H47: 0.31
B48: RU35004OMS0 | C48: RU000A102DR8 | D48: Министерство финансов Омской области | E48: 1045504005414 | F48: 77596 | G48: 73196655.99 | H48: 0.07
B49: RU35009SVS0 | C49: RU000A102CT6 | D49: Министерство финансов Свердловской области | E49: 1026605256589 | F49: 89253 | G49: 90731220.95 | H49: 0.09
B50: RU35015NJG0 | C50: RU000A102DS6 | D50: Министерство финансов Нижегородской области | E50: 1025203044426 | F50: 400000 | G50: 371459800 | H50: 0.38
B51: RU35016NJG0 | C51: RU000A1043K9 | D51: Министерство финансов Нижегородской области | E51: 1025203044426 | F51: 261800 | G51: 266404809.1 | H51: 0.27
B52: Итого: | G52: =SUM($G$40:$G$51) -> 2357116490 | H52: =(G52/$O$2) *100 -> 2.408748266
B53: Муниципальные облигации
B54: Итого: | H54: =(G54/$O$2) *100 -> 0
B55: Облигации российских эмитентов
B56: 4-11-36400-R | C56: RU000A106375 | D56: ОБЩЕСТВО С ОГРАНИЧЕННОЙ ОТВЕТСТВЕННОСТЬЮ "ГАЗПРОМ КАПИТАЛ" | E56: 1087746212388 | F56: 130000 | G56: 134479124 | H56: 0.14
B57: 4-19-65045-D | C57: RU000A0JQ7Z2 | D57: открытое акционерное общество "Российские железные дороги" | E57: 1037739877295 | F57: 53061 | G57: 53009000.22 | H57: 0.05
B58: 4-23-65045-D | C58: RU000A0JQRD9 | D58: открытое акционерное общество "Российские железные дороги" | E58: 1037739877295 | F58: 82358 | G58: 84742559.19 | H58: 0.09
B59: 4-28-65045-D | C59: RU000A0JTU85 | D59: открытое акционерное общество "Российские железные дороги" | E59: 1037739877295 | F59: 200000 | G59: 202003964 | H59: 0.21
B60: 4-32-65045-D | C60: RU000A0JSGV0 | D60: открытое акционерное общество "Российские железные дороги" | E60: 1037739877295 | F60: 24000 | G60: 24189391.92 | H60: 0.02
B61: 4-41-65045-D | C61: RU000A0JX1S1 | D61: открытое акционерное общество "Российские железные дороги" | E61: 1037739877295 | F61: 555627 | G61: 562416761.9 | H61: 0.57
B62: 4B02-01-00122-A | C62: RU000A0JUFU0 | D62: публичное акционерное общество "Нефтяная компания "Роснефть" | E62: 1027700043502 | F62: 85799 | G62: 90030606.68 | H62: 0.09
B63: 4B02-01-55192-E-001P | C63: RU000A100XC2 | D63: Публичное акционерное общество "Полюс" | E63: 1068400002990 | F63: 216344 | G63: 220781780.4 | H63: 0.23
B64: 4B02-01-55319-E-001P | C64: RU000A103AT8 | D64: акционерное общество "Атомный энергопромышленный комплекс" | E64: 1077758081664 | F64: 1075000 | G64: 1072732856 | H64: 1.1
B65: 4B02-01-65018-D-001P | C65: RU000A0ZZQN7 | D65: ПУБЛИЧНОЕ АКЦИОНЕРНОЕ ОБЩЕСТВО "ФЕДЕРАЛЬНАЯ СЕТЕВАЯ КОМПАНИЯ - РОССЕТИ" | E65: 1024701893336 | F65: 78106 | G65: 78509502.63 | H65: 0.08
B66: 4B02-02-00124-A-001P | C66: RU000A0JXPN8 | D66: ПУБЛИЧНОЕ АКЦИОНЕРНОЕ ОБЩЕСТВО "РОСТЕЛЕКОМ" | E66: 1027700198767 | F66: 100000 | G66: 102632603 | H66: 0.1
B67: 4B02-02-16643-A-002P | C67: RU000A104W17 | D67: акционерное общество "Почта России" | E67: 1197746000000 | F67: 575750 | G67: 582157849.9 | H67: 0.59
B68: 4B02-02-36241-R-002P | C68: RU000A105JP2 | D68: Общество с ограниченной ответственностью "ИКС 5 ФИНАНС" | E68: 1067761792053 | F68: 1573122 | G68: 1590203305 | H68: 1.63
B69: 4B02-02-36400-R-001P | C69: RU000A100LL8 | D69: ОБЩЕСТВО С ОГРАНИЧЕННОЙ ОТВЕТСТВЕННОСТЬЮ "ГАЗПРОМ КАПИТАЛ" | E69: 1087746212388 | F69: 141917 | G69: 141053814 | H69: 0.14
B70: 4B02-02-40155-F-001P | C70: RU000A105A61 | D70: Публичное акционерное общество "Горно-металлургическая компания "Норильский никель" | E70: 1028400000298 | F70: 2047000 | G70: 2107390946 | H70: 2.15
B71: 4B02-02-55052-E-002P | C71: RU000A102GU5 | D71: ПУБЛИЧНОЕ АКЦИОНЕРНОЕ ОБЩЕСТВО "БЕЛУГА ГРУПП" | E71: 1047796969450 | F71: 209603 | G71: 202411521.1 | H71: 0.21
B72: 4B02-02-55319-E-001P | C72: RU000A105K85 | D72: акционерное общество "Атомный энергопромышленный комплекс" | E72: 1077758081664 | F72: 858000 | G72: 861864157.4 | H72: 0.88
B73: 4B02-02-55385-E-001P | C73: RU000A101MG4 | D73: ПУБЛИЧНОЕ АКЦИОНЕРНОЕ ОБЩЕСТВО "ФЕДЕРАЛЬНАЯ СЕТЕВАЯ КОМПАНИЯ - РОССЕТИ" | E73: 1024701893336 | F73: 200000 | G73: 190983620 | H73: 0.2
B74: 4B02-02-65045-D | C74: RU000A0JVW71 | D74: открытое акционерное общество "Российские железные дороги" | E74: 1037739877295 | F74: 980000 | G74: 1009213800 | H74: 1.03
B75: 4B02-03-00124-A-001P | C75: RU000A0ZYG52 | D75: ПУБЛИЧНОЕ АКЦИОНЕРНОЕ ОБЩЕСТВО "РОСТЕЛЕКОМ" | E75: 1027700198767 | F75: 355700 | G75: 359385052 | H75: 0.37
B76: 4B02-03-55052-E-002P | C76: RU000A104Y15 | D76: ПУБЛИЧНОЕ АКЦИОНЕРНОЕ ОБЩЕСТВО "БЕЛУГА ГРУПП" | E76: 1047796969450 | F76: 250000 | G76: 254537500 | H76: 0.26
B77: 4B02-03-55192-E-001P | C77: RU000A105VC5 | D77: Публичное акционерное общество "Полюс" | E77: 1068400002990 | F77: 125000 | G77: 130844097.4 | H77: 0.13
B78: 4B02-03-65018-D-001P | C78: RU000A1036S6 | D78: ПУБЛИЧНОЕ АКЦИОНЕРНОЕ ОБЩЕСТВО "ФЕДЕРАЛЬНАЯ СЕТЕВАЯ КОМПАНИЯ - РОССЕТИ" | E78: 1024701893336 | F78: 1000000 | G78: 1011158625 | H78: 1.03
B79: 4B02-03-65134-D | C79: RU000A103DS4 | D79: Публичное акционерное общество "СИБУР Холдинг" | E79: 1057747421247 | F79: 557020 | G79: 559108057 | H79: 0.57
B80: 4B02-04-00124-A-001P | C80: RU000A0ZYYE3 | D80: ПУБЛИЧНОЕ АКЦИОНЕРНОЕ ОБЩЕСТВО "РОСТЕЛЕКОМ" | E80: 1027700198767 | F80: 80500 | G80: 81933705 | H80: 0.08
B81: 4B02-04-10797-A-001P | C81: RU000A102LD1 | D81: Публичное акционерное общество "Группа Черкизово" | E81: 1057748318473 | F81: 767340 | G81: 765007286.4 | H81: 0.78
B82: 4B02-04-36400-R | C82: RU000A0ZYV04 | D82: ОБЩЕСТВО С ОГРАНИЧЕННОЙ ОТВЕТСТВЕННОСТЬЮ "ГАЗПРОМ КАПИТАЛ" | E82: 1087746212388 | F82: 404086 | G82: 404789109.6 | H82: 0.41
B83: 4B02-04-60525-P-002P | C83: RU000A1036H9 | D83: Публичное акционерное общество "Магнит" | E83: 1032304945947 | F83: 1145000 | G83: 1158480305 | H83: 1.18
B84: 4B02-04-65018-D | C84: RU000A0ZYJ91 | D84: ПУБЛИЧНОЕ АКЦИОНЕРНОЕ ОБЩЕСТВО "ФЕДЕРАЛЬНАЯ СЕТЕВАЯ КОМПАНИЯ - РОССЕТИ" | E84: 1024701893336 | F84: 58912 | G84: 59583476.03 | H84: 0.06
B85: 4B02-05-00122-A | C85: RU000A0JUCS1 | D85: публичное акционерное общество "Нефтяная компания "Роснефть" | E85: 1027700043502 | F85: 72140 | G85: 73065598.76 | H85: 0.07
B86: 4B02-05-00146-A-001P | C86: RU000A0ZYLQ4 | D86: Публичное акционерное общество "Газпром нефть" | E86: 1025501701686 | F86: 411785 | G86: 406991946.1 | H86: 0.42
B87: 4B02-05-00206-A-001P | C87: RU000A0JXC24 | D87: Публичное акционерное общество "Транснефть" | E87: 1027700049486 | F87: 31870 | G87: 31980270.2 | H87: 0.03
B88: 4B02-05-36400-R | C88: RU000A0JXFS8 | D88: ОБЩЕСТВО С ОГРАНИЧЕННОЙ ОТВЕТСТВЕННОСТЬЮ "ГАЗПРОМ КАПИТАЛ" | E88: 1087746212388 | F88: 206000 | G88: 214792080 | H88: 0.22
B89: 4B02-05-60525-P-001P | C89: RU000A1036M9 | D89: Публичное акционерное общество "Магнит" | E89: 1032304945947 | F89: 1145000 | G89: 1158411775 | H89: 1.18
B90: 4B02-05-65018-D-001P | C90: RU000A101LX1 | D90: ПУБЛИЧНОЕ АКЦИОНЕРНОЕ ОБЩЕСТВО "ФЕДЕРАЛЬНАЯ СЕТЕВАЯ КОМПАНИЯ - РОССЕТИ" | E90: 1024701893336 | F90: 200000 | G90: 190967100 | H90: 0.2
B91: 4B02-05-65045-D-001P | C91: RU000A0ZYU05 | D91: открытое акционерное общество "Российские железные дороги" | E91: 1037739877295 | F91: 24999 | G91: 24498315.28 | H91: 0.03
B92: 4B02-06-00122-A | C92: RU000A0JUCR3 | D92: публичное акционерное общество "Нефтяная компания "Роснефть" | E92: 1027700043502 | F92: 1349964 | G92: 1366146086 | H92: 1.4
B93: 4B02-06-00124-A-001P | C93: RU000A105LC6 | D93: ПУБЛИЧНОЕ АКЦИОНЕРНОЕ ОБЩЕСТВО "РОСТЕЛЕКОМ" | E93: 1027700198767 | F93: 604000 | G93: 606845142 | H93: 0.62
B94: 4B02-06-00124-A-002P | C94: RU000A103EZ7 | D94: ПУБЛИЧНОЕ АКЦИОНЕРНОЕ ОБЩЕСТВО "РОСТЕЛЕКОМ" | E94: 1027700198767 | F94: 800000 | G94: 801726652.1 | H94: 0.82
B95: 4B02-06-00739-A-001P | C95: RU000A100ET6 | D95: Акционерное общество "ДОМ.РФ" | E95: 1027700262270 | F95: 65000 | G95: 65408791.5 | H95: 0.07
B96: 4B02-06-31153-H-001P | C96: RU000A100RG5 | D96: Акционерное общество "Минерально-химическая компания "ЕвроХим" | E96: 1027700002659 | F96: 149000 | G96: 151484927.1 | H96: 0.15
B97: 4B02-06-35992-H-001P | C97: RU000A1038D4 | D97: акционерное общество "Трансмашхолдинг" | E97: 1027739893246 | F97: 1300000 | G97: 1307492567 | H97: 1.34
B98: 4B02-06-36393-R-001P | C98: RU000A102986 | D98: Общество с ограниченной ответственностью "СУЭК-Финанс" | E98: 1107746282687 | F98: 500000 | G98: 506406792.1 | H98: 0.52
B99: 4B02-06-55038-E-001P | C99: RU000A1057P8 | D99: Публичное акционерное общество "Федеральная гидрогенерирующая компания - РусГидро" | E99: 1042401810494 | F99: 536200 | G99: 533004248 | H99: 0.54
B100: 4B02-06-65018-D | C100: RU000A105DN0 | D100: ПУБЛИЧНОЕ АКЦИОНЕРНОЕ ОБЩЕСТВО "ФЕДЕРАЛЬНАЯ СЕТЕВАЯ КОМПАНИЯ - РОССЕТИ" | E100: 1024701893336 | F100: 2998580 | G100: 3065048658 | H100: 3.13
B101: 4B02-06-65018-D-001P | C101: RU000A105559 | D101: ПУБЛИЧНОЕ АКЦИОНЕРНОЕ ОБЩЕСТВО "ФЕДЕРАЛЬНАЯ СЕТЕВАЯ КОМПАНИЯ - РОССЕТИ" | E101: 1024701893336 | F101: 309700 | G101: 314224763.1 | H101: 0.32
B102: 4B02-07-00122-A | C102: RU000A0JUFV8 | D102: публичное акционерное общество "Нефтяная компания "Роснефть" | E102: 1027700043502 | F102: 188650 | G102: 196256368 | H102: 0.2
B103: 4B02-07-55038-E-001P | C103: RU000A105HC4 | D103: Публичное акционерное общество "Федеральная гидрогенерирующая компания - РусГидро" | E103: 1042401810494 | F103: 499100 | G103: 499409242.4 | H103: 0.51
B104: 4B02-07-65045-D-001P | C104: RU000A0ZZ9R4 | D104: открытое акционерное общество "Российские железные дороги" | E104: 1037739877295 | F104: 376157 | G104: 375487632.4 | H104: 0.38
B105: 4B02-08-00122-A-002P | C105: RU000A100KY3 | D105: публичное акционерное общество "Нефтяная компания "Роснефть" | E105: 1027700043502 | F105: 500000 | G105: 496785000 | H105: 0.51
B106: 4B02-08-00124-A-002P | C106: RU000A104VS4 | D106: ПУБЛИЧНОЕ АКЦИОНЕРНОЕ ОБЩЕСТВО "РОСТЕЛЕКОМ" | E106: 1027700198767 | F106: 194680 | G106: 197209348.9 | H106: 0.2
B107: 4B02-08-31153-H-001P | C107: RU000A101LJ0 | D107: Акционерное общество "Минерально-химическая компания "ЕвроХим" | E107: 1027700002659 | F107: 938432 | G107: 966914441.8 | H107: 0.99
B108: 4B02-08-36400-R-001P | C108: RU000A105U00 | D108: ОБЩЕСТВО С ОГРАНИЧЕННОЙ ОТВЕТСТВЕННОСТЬЮ "ГАЗПРОМ КАПИТАЛ" | E108: 1087746212388 | F108: 351901 | G108: 367091851.6 | H108: 0.38
B109: 4B02-09-00124-A-002P | C109: RU000A1051E5 | D109: ПУБЛИЧНОЕ АКЦИОНЕРНОЕ ОБЩЕСТВО "РОСТЕЛЕКОМ" | E109: 1027700198767 | F109: 415450 | G109: 433317493.7 | H109: 0.44
B110: 4B02-09-40155-F | C110: RU000A1069N8 | D110: Публичное акционерное общество "Горно-металлургическая компания "Норильский никель" | E110: 1028400000298 | F110: 1379900 | G110: 1407291015 | H110: 1.44
B111: 4B02-09-55038-E-001P | C111: RU000A105SL2 | D111: Публичное акционерное общество "Федеральная гидрогенерирующая компания - РусГидро" | E111: 1042401810494 | F111: 637000 | G111: 665972444.9 | H111: 0.68
B112: 4B02-10-55038-E-001P | C112: RU000A106037 | D112: Публичное акционерное общество "Федеральная гидрогенерирующая компания - РусГидро" | E112: 1042401810494 | F112: 35000 | G112: 36167092.5 | H112: 0.04
B113: 4B02-11-55038-E-001P | C113: RU000A106GD2 | D113: Публичное акционерное общество "Федеральная гидрогенерирующая компания - РусГидро" | E113: 1042401810494 | F113: 345000 | G113: 347454565.1 | H113: 0.36
B114: 4B02-12-65045-D-001P | C114: RU000A1002C2 | D114: открытое акционерное общество "Российские железные дороги" | E114: 1037739877295 | F114: 2950 | G114: 2963334 | H114: 0
B115: 4B02-16-65045-D-001P | C115: RU000A100HY9 | D115: открытое акционерное общество "Российские железные дороги" | E115: 1037739877295 | F115: 95511 | G115: 99651961.36 | H115: 0.1
B116: 4B02-20-04715-A-001P | C116: RU000A104SU6 | D116: Публичное акционерное общество "Мобильные ТелеСистемы" | E116: 1027700149124 | F116: 866000 | G116: 890292201.1 | H116: 0.91
B117: 4B02-21-04715-A-001P | C117: RU000A104WJ1 | D117: Публичное акционерное общество "Мобильные ТелеСистемы" | E117: 1027700149124 | F117: 700000 | G117: 706510446 | H117: 0.72
B118: 4B02-22-04715-A-001P | C118: RU000A1051T3 | D118: Публичное акционерное общество "Мобильные ТелеСистемы" | E118: 1027700149124 | F118: 753000 | G118: 767947439.6 | H118: 0.78
B119: 4B02-26-65045-D-001P | C119: RU000A106K43 | D119: открытое акционерное общество "Российские железные дороги" | E119: 1037739877295 | F119: 1141000 | G119: 1152980500 | H119: 1.18
B120: 4B02-500-01481-B-001P | C120: RU000A103WV8 | D120: Публичное акционерное общество "Сбербанк России" | E120: 1027700132195 | F120: 97606 | G120: 99236020.2 | H120: 0.1
B121: 4B02-563-01481-B-001P | C121: RU000A105666 | D121: Публичное акционерное общество "Сбербанк России" | E121: 1027700132195 | F121: 2274000 | G121: 2307721828 | H121: 2.36
B122: 4B021301326B | C122: RU000A0JUU90 | D122: АКЦИОНЕРНОЕ ОБЩЕСТВО "АЛЬФА-БАНК" | E122: 1027700067328 | F122: 204811 | G122: 209059783.7 | H122: 0.21
B123: Итого: | G123: =SUM($G$56:$G$122) -> 3.71398501e+10 | H123: =(G123/$O$2) *100 -> 37.95338496
B124: Акции
B125: 1-01-00077-A | C125: RU0009024277 | D125: Публичное акционерное общество "Нефтяная компания "ЛУКОЙЛ" | E125: 1027700035769 | F125: 162000 | G125: 962928000 | H125: 0.98
B126: 1-01-00102-A | C126: RU0009046452 | D126: ПУБЛИЧНОЕ АКЦИОНЕРНОЕ ОБЩЕСТВО "НОВОЛИПЕЦКИЙ МЕТАЛЛУРГИЧЕСКИЙ КОМБИНАТ" | E126: 1024800823123 | F126: 515290 | G126: 108046007.2 | H126: 0.11
B127: 1-01-00124-A | C127: RU0008943394 | D127: ПУБЛИЧНОЕ АКЦИОНЕРНОЕ ОБЩЕСТВО "РОСТЕЛЕКОМ" | E127: 1027700198767 | F127: 995260 | G127: 74117012.2 | H127: 0.08
B128: 1-01-00155-A | C128: RU0008926258 | D128: Публичное акционерное общество "Сургутнефтегаз" | E128: 1028600584540 | F128: 8864800 | G128: 261378628 | H128: 0.27
B129: 1-01-04715-A | C129: RU0007775219 | D129: Публичное акционерное общество "Мобильные ТелеСистемы" | E129: 1027700149124 | F129: 171270 | G129: 49638327.75 | H129: 0.05
B130: 1-01-10613-A | C130: RU000A0JXNU8 | D130: публичное акционерное общество "Современный коммерческий флот" | E130: 1027739028712 | F130: 1731910 | G130: 170645092.3 | H130: 0.17
B131: 1-01-40155-F | C131: RU0007288411 | D131: Публичное акционерное общество "Горно-металлургическая компания "Норильский никель" | E131: 1028400000298 | F131: 81900 | G131: 1361997000 | H131: 1.39
B132: 1-01-55192-E | C132: RU000A0JNAA8 | D132: Публичное акционерное общество "Полюс" | E132: 1068400002990 | F132: 44963 | G132: 534340292 | H132: 0.55
B133: 1-01-60525-P | C133: RU000A0JKQU8 | D133: Публичное акционерное общество "Магнит" | E133: 1032304945947 | F133: 72779 | G133: 421263046.8 | H133: 0.43
B134: 1-01-65018-D | C134: RU000A0JPNN9 | D134: ПУБЛИЧНОЕ АКЦИОНЕРНОЕ ОБЩЕСТВО "ФЕДЕРАЛЬНАЯ СЕТЕВАЯ КОМПАНИЯ - РОССЕТИ" | E134: 1024701893336 | F134: 290299511 | G134: 35172688.75 | H134: 0.04
B135: 1-02-00028-A | C135: RU0007661625 | D135: Публичное акционерное общество "Газпром" | E135: 1027700070518 | F135: 11127370 | G135: 1930709969 | H135: 1.97
B136: 1-02-00122-A | C136: RU000A0J2Q06 | D136: публичное акционерное общество "Нефтяная компания "Роснефть" | E136: 1027700043502 | F136: 2435000 | G136: 1239171500 | H136: 1.27
B137: 1-02-00143-A | C137: RU0009046510 | D137: Публичное акционерное общество "Северсталь" | E137: 1023501236901 | F137: 540622 | G137: 733191556.4 | H137: 0.75
B138: 1-02-00268-E | C138: RU000A0DKVS5 | D138: публичное акционерное общество "НОВАТЭК" | E138: 1026303117642 | F138: 573187 | G138: 869066129.4 | H138: 0.89
B139: 1-02-65104-D | C139: RU000A0JNGA5 | D139: Публичное акционерное общество "Юнипро" | E139: 1058602056985 | F139: 40229000 | G139: 83917694 | H139: 0.09
B140: 1-03-00078-A | C140: RU0009084396 | D140: ПУБЛИЧНОЕ АКЦИОНЕРНОЕ ОБЩЕСТВО "МАГНИТОГОРСКИЙ МЕТАЛЛУРГИЧЕСКИЙ КОМБИНАТ" | E140: 1027402166835 | F140: 7721000 | G140: 410641385 | H140: 0.42
B141: 1-03-00161-A | C141: RU0009033591 | D141: публичное акционерное общество "Татнефть" имени В.Д. Шашина | E141: 1021601623702 | F141: 91900 | G141: 47866115 | H141: 0.05
B142: 1-03-40046-N | C142: RU0007252813 | D142: Акционерная компания "АЛРОСА" (публичное акционерное общество) | E142: 1021400967092 | F142: 8211780 | G142: 698740360.2 | H142: 0.71
B143: 1-04-33498-E | C143: RU000A0JPNM1 | D143: ПУБЛИЧНОЕ АКЦИОНЕРНОЕ ОБЩЕСТВО "ИНТЕР РАО ЕЭС" | E143: 1022302933630 | F143: 3520600 | G143: 14627388.88 | H143: 0.01
B144: 1-05-01669-A | C144: RU000A0DQZE3 | D144: Публичное акционерное общество "Акционерная финансовая корпорация "Система" | E144: 1027700003891 | F144: 10684600 | G144: 200763634 | H144: 0.21
B145: 1-05-08443-H | C145: RU000A0JR4A1 | D145: Публичное акционерное общество "Московская Биржа ММВБ-РТС" | E145: 1027739387411 | F145: 753010 | G145: 100075029 | H145: 0.1
B146: 10301481B | C146: RU0009029540 | D146: Публичное акционерное общество "Сбербанк России" | E146: 1027700132195 | F146: 8575003 | G146: 2268002543 | H146: 2.32
B147: 10401000B | C147: RU000A0JP5V6 | D147: Банк ВТБ (публичное акционерное общество) | E147: 1027739609391 | F147: 3349110000 | G147: 86189345.85 | H147: 0.09
B148: 2-01-00155-A | C148: RU0009029524 | D148: Публичное акционерное общество "Сургутнефтегаз" | E148: 1028600584540 | F148: 69300 | G148: 3228340.5 | H148: 0
B149: 2-01-00206-A | C149: RU0009091573 | D149: Публичное акционерное общество "Транснефть" | E149: 1027700049486 | F149: 659 | G149: 80365050 | H149: 0.08
B150: 2-03-00161-A | C150: RU0006944147 | D150: публичное акционерное общество "Татнефть" имени В.Д. Шашина | E150: 1021601623702 | F150: 41570 | G150: 21396079 | H150: 0.02
B151: 20301481B | C151: RU0009029557 | D151: Публичное акционерное общество "Сбербанк России" | E151: 1027700132195 | F151: 1262005 | G151: 332071375.6 | H151: 0.34
B152: Итого: | G152: =SUM($G$125:$G$151) -> 1.309954959e+10 | H152: =(G152/$O$2) *100 -> 13.38649044
B153: Паи паевых инвестиционных фондов, в том числе паи (акции, доли) иностранных индексных инвестиционных фондов
B154: Итого: | H154: =(G154/$O$2) *100 -> 0
B155: Ипотечные ценные бумаги, выпущенные в соответствии с законодательством Российской Федерации об ипотечных ценных бумагах
B156: Итого: | H156: =(G156/$O$2) *100 -> 0
B157: Ценные бумаги международных финансовых организаций
B158: Итого: | H158: =(G158/$O$2) *100 -> 0
B159: Облигации иностранных эмитентов
B160: Итого: | H160: =(G160/$O$2) *100 -> 0
B161: Денежные средства на счетах в кредитных организациях
B162: ПАО Сбербанк, 40701810938000008936, 22.03.2022 | D162: Публичное акционерное общество "Сбербанк России" | E162: 1027700132195 | G162: 291510.24 | H162: 0
B163: ПАО Сбербанк, 40701810000020002112, 11.05.2023 | D163: Публичное акционерное общество "Сбербанк России" | E163: 1027700132195 | G163: 304806.29 | H163: 0
B164: Банк ГПБ (АО), 810-2-664785/09, 30.09.2009 | D164: "Газпромбанк" (Акционерное общество) | E164: 1027700167110 | G164: 141642.11 | H164: 0
B165: ПАО Сбербанк, 40701810400020000950, 08.02.2022 | D165: Публичное акционерное общество "Сбербанк России" | E165: 1027700132195 | G165: 497570.81 | H165: 0
B166: ПАО Сбербанк, 40701810538000008938, 22.03.2022 | D166: Публичное акционерное общество "Сбербанк России" | E166: 1027700132195 | G166: 23561.42 | H166: 0
B167: ПАО Сбербанк, 40701810238000001866, 31.03.2023 | D167: Публичное акционерное общество "Сбербанк России" | E167: 1027700132195 | G167: 10463 | H167: 0
B168: ПАО Сбербанк, 40701810138000003058, 12.07.2023 | D168: Публичное акционерное общество "Сбербанк России" | E168: 1027700132195 | G168: 297500 | H168: 0
B169: Банк ГПБ (АО), 23632/2022-ДУ-1, 27.04.2022 | D169: "Газпромбанк" (Акционерное общество) | E169: 1027700167110 | G169: 5724.77 | H169: 0
B170: ПАО Сбербанк, 40701810438000008928, 22.03.2022 | D170: Публичное акционерное общество "Сбербанк России" | E170: 1027700132195 | G170: 140757.76 | H170: 0
B171: ПАО Сбербанк, 40701810600020000019, 12.10.2016 | D171: Публичное акционерное общество "Сбербанк России" | E171: 1027700132195 | G171: 547559.73 | H171: 0
B172: ПАО Сбербанк, 40701810938000003070, 12.07.2023 | D172: Публичное акционерное общество "Сбербанк России" | E172: 1027700132195 | G172: 297500 | H172: 0
B173: Банк ГПБ (АО), 810-3-14785/08, 22.02.2008 | D173: "Газпромбанк" (Акционерное общество) | E173: 1027700167110 | G173: 1721.68 | H173: 0
B174: ПАО Сбербанк, 40701810738000008932, 22.03.2022 | D174: Публичное акционерное общество "Сбербанк России" | E174: 1027700132195 | G174: 4133.12 | H174: 0
B175: ПАО Сбербанк, 40701810300020001347, 30.04.2008 | D175: Публичное акционерное общество "Сбербанк России" | E175: 1027700132195 | G175: 1357139.23 | H175: 0
B176: ПАО Сбербанк, б/н, 14.11.2018 | D176: Публичное акционерное общество "Сбербанк России" | E176: 1027700132195 | G176: 352290.16 | H176: 0
B177: Итого: | G177: =SUM($G$162:$G$176) -> 4273880.32 | H177: =(G177/$O$2) *100 -> 0.004367498108
B178: Депозиты и депозитные сертификаты
B179: ПАО Сбербанк, 0002006726 (Договор №0002801592.00 от 31.07.2023), 10.12.2020 | D179: Публичное акционерное общество "Сбербанк России" | E179: 1027700132195 | G179: 10500000 | H179: 0.01
B180: ПАО Сбербанк, 0002006726 (Договор №0002801607.00 от 31.07.2023), 10.12.2020 | D180: Публичное акционерное общество "Сбербанк России" | E180: 1027700132195 | G180: 92000000 | H180: 0.09
B181: ПАО Сбербанк, 0002006726 (Договор №0002801615.00 от 31.07.2023), 10.12.2020 | D181: Публичное акционерное общество "Сбербанк России" | E181: 1027700132195 | G181: 181500000 | H181: 0.19
B182: ПАО Сбербанк, 0002006726 (Договор №0002801619.00 от 31.07.2023), 10.12.2020 | D182: Публичное акционерное общество "Сбербанк России" | E182: 1027700132195 | G182: 21000000 | H182: 0.02
B183: ПАО Сбербанк, 0002006726 (Договор №0002801623.00 от 31.07.2023), 10.12.2020 | D183: Публичное акционерное общество "Сбербанк России" | E183: 1027700132195 | G183: 58000000 | H183: 0.06
B184: Итого: | G184: =SUM($G$179:$G$183) -> 363000000 | H184: =(G184/$O$2) *100 -> 0.3709513825
B185: Недвижимое имущество
B186: Итого: | H186: =(G186/$O$2) *100 -> 0
B187: Средства на специальных брокерских, клиринговых счетах
B188: АО "Сбербанк КИБ", 33-20/23, 19.04.2023 | D188: Акционерное общество "Сбербанк КИБ" | E188: 1027739007768 | G188: 8151.37 | H188: 0
B189: Банк ГПБ (АО), Г000-Б-104838, 30.05.2022 | D189: "Газпромбанк" (Акционерное общество) | E189: 1027700167110 | G189: 28649.24 | H189: 0
B190: Банк ГПБ (АО), Г000-Б-104839, 30.05.2022 | D190: "Газпромбанк" (Акционерное общество) | E190: 1027700167110 | G190: 225528773.2 | H190: 0.23
B191: Банк ГПБ (АО), Г000-Б-104841, 30.05.2022 | D191: "Газпромбанк" (Акционерное общество) | E191: 1027700167110 | G191: 20818.17 | H191: 0
B192: Банк ГПБ (АО), Г000-Б-104842, 30.05.2022 | D192: "Газпромбанк" (Акционерное общество) | E192: 1027700167110 | G192: 19030.13 | H192: 0
B193: Банк ГПБ (АО), Г000-Б-12670, 26.09.2008 | D193: "Газпромбанк" (Акционерное общество) | E193: 1027700167110 | G193: 3692.86 | H193: 0
B194: Итого: | G194: =SUM($G$188:$G$193) -> 225609114.9 | H194: =(G194/$O$2) *100 -> 0.2305510002
B195: Предварительные затраты по ценным бумагам
B196: Итого: | H196: =(G196/$O$2) *100 -> 0
B197: Положительная переоценка сделок Т+
B198: Итого: | H198: =(G198/$O$2) *100 -> 0
B199: Дебиторская задолженность по сделкам репо
B200: 26215RMFS | D200: Небанковская кредитная организация-центральный контрагент "Национальный Клиринговый Центр" (Акционерное общество) | E200: 1067711004481 | G200: 1583354.88 | H200: 0
B201: 26219RMFS | D201: Небанковская кредитная организация-центральный контрагент "Национальный Клиринговый Центр" (Акционерное общество) | E201: 1067711004481 | G201: 1130199.9 | H201: 0
... 26 more rows
